[Event "Titled Tuesday Blitz January 17 Early 2023"]
[White "Jaskolka, Tomasz"]
[Black "Kalajzic, Ivan"]
[WhiteFideId "1170791"]
[BlackFideId "14506378"]
[WhiteElo "2238"]
[BlackElo "2062"]
[Result "1/2-1/2"]
[Round "10"]
[TimeControl "180+2"]
[Date "2023.01.17"]
[WhiteClock "0:00:17"]
[BlackClock "0:00:13"]

1. e4 {[%clk 0:03:00]}  Nc6 {[%clk 0:02:49]} 2. Nf3 {[%clk 0:02:59]}  d6 {[%clk 0:02:48]} 3. d4 {[%clk 0:02:57]}  Bg4 {[%clk 0:02:48]} 4. Nc3 {[%clk 0:02:52]}  a6 {[%clk 0:02:45]} 5. Be3 {[%clk 0:02:50]}  e5 {[%clk 0:02:44]} 6. d5 {[%clk 0:02:49]}  Nce7 {[%clk 0:02:44]} 7. Be2 {[%clk 0:02:50]}  Nf6 {[%clk 0:02:43]} 8. h3 {[%clk 0:02:49]}  Bd7 {[%clk 0:02:43]} 9. Qd2 {[%clk 0:02:47]}  g6 {[%clk 0:02:38]} 10. O-O-O {[%clk 0:02:44]}  Bg7 {[%clk 0:02:38]} 11. g4 {[%clk 0:02:44]}  b5 {[%clk 0:02:37]} 12. Kb1 {[%clk 0:02:40]}  b4 {[%clk 0:02:36]} 13. Na4 {[%clk 0:02:12]}  Bxa4 {[%clk 0:02:26]} 14. Qxb4 {[%clk 0:02:13]}  Bd7 {[%clk 0:02:23]} 15. Bd3 {[%clk 0:01:53]}  Qb8 {[%clk 0:02:16]} 16. Qc3 {[%clk 0:01:51]}  O-O {[%clk 0:02:11]} 17. Rdg1 {[%clk 0:01:49]}  Nfxd5 {[%clk 0:02:07]} 18. exd5 {[%clk 0:01:45]}  Nxd5 {[%clk 0:02:06]} 19. Qd2 {[%clk 0:01:43]}  Nxe3 {[%clk 0:02:06]} 20. Qxe3 {[%clk 0:01:42]}  e4 {[%clk 0:02:05]} 21. Nd4 {[%clk 0:01:43]}  exd3 {[%clk 0:02:01]} 22. Qxd3 {[%clk 0:01:43]}  Qb6 {[%clk 0:01:59]} 23. c3 {[%clk 0:01:42]}  Rab8 {[%clk 0:01:51]} 24. b3 {[%clk 0:01:41]}  Rfe8 {[%clk 0:01:47]} 25. h4 {[%clk 0:01:42]}  Bc6 {[%clk 0:01:47]} 26. f3 {[%clk 0:01:40]}  Bd5 {[%clk 0:01:40]} 27. h5 {[%clk 0:01:39]}  Bxd4 {[%clk 0:01:25]} 28. cxd4 {[%clk 0:01:39]}  Bxb3 {[%clk 0:01:25]} 29. axb3 {[%clk 0:01:39]}  Qxb3+ {[%clk 0:01:25]} 30. Qxb3 {[%clk 0:01:39]}  Rxb3+ {[%clk 0:01:26]} 31. Kc2 {[%clk 0:01:40]}  Rxf3 {[%clk 0:01:26]} 32. hxg6 {[%clk 0:01:41]}  hxg6 {[%clk 0:01:25]} 33. Rg2 {[%clk 0:01:39]}  Ree3 {[%clk 0:01:21]} 34. Rgh2 {[%clk 0:01:37]}  Kf8 {[%clk 0:01:19]} 35. Rh8+ {[%clk 0:01:36]}  Ke7 {[%clk 0:01:20]} 36. Ra8 {[%clk 0:01:36]}  Ra3 {[%clk 0:01:20]} 37. Kb2 {[%clk 0:01:31]}  Kf6 {[%clk 0:01:13]} 38. Rg1 {[%clk 0:01:24]}  Kg5 {[%clk 0:01:12]} 39. Rc8 {[%clk 0:01:24]}  Rac3 {[%clk 0:01:11]} 40. Ra8 {[%clk 0:01:23]}  Rce3 {[%clk 0:01:08]} 41. Rxa6 {[%clk 0:01:22]}  Re2+ {[%clk 0:01:08]} 42. Kc1 {[%clk 0:01:22]}  Rff2 {[%clk 0:01:06]} 43. Ra5+ {[%clk 0:01:22]}  Kf4 {[%clk 0:01:03]} 44. g5 {[%clk 0:01:23]}  Ra2 {[%clk 0:01:01]} 45. Rxa2 {[%clk 0:01:20]}  Rxa2 {[%clk 0:01:01]} 46. Rf1+ {[%clk 0:01:20]}  Ke4 {[%clk 0:00:57]} 47. Rxf7 {[%clk 0:01:21]}  Kxd4 {[%clk 0:00:57]} 48. Rxc7 {[%clk 0:01:21]}  d5 {[%clk 0:00:55]} 49. Rc6 {[%clk 0:01:20]}  Kd3 {[%clk 0:00:52]} 50. Rxg6 {[%clk 0:01:19]}  d4 {[%clk 0:00:52]} 51. Rb6 {[%clk 0:01:07]}  Rc2+ {[%clk 0:00:48]} 52. Kd1 {[%clk 0:01:04]}  Rg2 {[%clk 0:00:49]} 53. Rb3+ {[%clk 0:01:00]}  Ke4 {[%clk 0:00:49]} 54. Rb5 {[%clk 0:00:57]}  Ke3 {[%clk 0:00:45]} 55. Re5+ {[%clk 0:00:29]}  Kd3 {[%clk 0:00:45]} 56. Ke1 {[%clk 0:00:30]}  Rg4 {[%clk 0:00:37]} 57. Kf2 {[%clk 0:00:27]}  Kc2 {[%clk 0:00:34]} 58. Rc5+ {[%clk 0:00:25]}  Kd2 {[%clk 0:00:31]} 59. Kf3 {[%clk 0:00:26]}  Rg1 {[%clk 0:00:31]} 60. Rd5 {[%clk 0:00:23]}  d3 {[%clk 0:00:31]} 61. Ke4 {[%clk 0:00:23]}  Re1+ {[%clk 0:00:31]} 62. Kf5 {[%clk 0:00:22]}  Rf1+ {[%clk 0:00:30]} 63. Ke4 {[%clk 0:00:21]}  Re1+ {[%clk 0:00:28]} 64. Kf5 {[%clk 0:00:21]}  Ke2 {[%clk 0:00:27]} 65. g6 {[%clk 0:00:16]}  Rf1+ {[%clk 0:00:26]} 66. Ke6 {[%clk 0:00:14]}  Rg1 {[%clk 0:00:25]} 67. Kf7 {[%clk 0:00:14]}  Rf1+ {[%clk 0:00:24]} 68. Ke7 {[%clk 0:00:14]}  d2 {[%clk 0:00:21]} 69. g7 {[%clk 0:00:13]}  Rg1 {[%clk 0:00:20]} 70. Re5+ {[%clk 0:00:13]}  Kd3 {[%clk 0:00:20]} 71. Rd5+ {[%clk 0:00:14]}  Ke3 {[%clk 0:00:20]} 72. Kf7 {[%clk 0:00:14]}  Rf1+ {[%clk 0:00:18]} 73. Ke7 {[%clk 0:00:13]}  Rg1 {[%clk 0:00:15]} 74. Kf6 {[%clk 0:00:14]}  Rxg7 {[%clk 0:00:11]} 75. Kxg7 {[%clk 0:00:13]}  Ke2 {[%clk 0:00:11]} 76. Re5+ {[%clk 0:00:14]}  Kf2 {[%clk 0:00:12]} 77. Rf5+ {[%clk 0:00:14]}  Ke2 {[%clk 0:00:12]} 78. Re5+ {[%clk 0:00:15]}  Kf2 {[%clk 0:00:13]} 79. Rd5 {[%clk 0:00:15]}  Ke2 {[%clk 0:00:13]} 80. Kf6 {[%clk 0:00:16]}  d1=Q {[%clk 0:00:13]} 81. Rxd1 {[%clk 0:00:17]}  Kxd1 {[%clk 0:00:13]} 1/2-1/2


[Site "https://www.chess.com"]

[Event "Titled Tuesday Blitz January 17 Early 2023"]
[White "Vaglio Munoz, Jaime"]
[Black "Seletsky, Grigory"]
[WhiteFideId "6500145"]
[BlackFideId "14112191"]
[WhiteElo "2174"]
[BlackElo "2259"]
[Result "1-0"]
[Round "10"]
[TimeControl "180+2"]
[Date "2023.01.17"]
[WhiteClock "0:00:29"]
[BlackClock "0:00:12"]

1. d4 {[%clk 0:02:51]}  d6 {[%clk 0:02:29]} 2. c4 {[%clk 0:02:49]}  e5 {[%clk 0:02:28]} 3. d5 {[%clk 0:02:46]}  f5 {[%clk 0:02:24]} 4. e4 {[%clk 0:02:46]}  fxe4 {[%clk 0:02:22]} 5. Nc3 {[%clk 0:02:45]}  Nf6 {[%clk 0:02:23]} 6. Bg5 {[%clk 0:02:44]}  Be7 {[%clk 0:02:21]} 7. Bxf6 {[%clk 0:02:42]}  Bxf6 {[%clk 0:02:14]} 8. Nxe4 {[%clk 0:02:43]}  Bf5 {[%clk 0:02:11]} 9. Bd3 {[%clk 0:02:42]}  Bg6 {[%clk 0:02:11]} 10. Ne2 {[%clk 0:02:42]}  Nd7 {[%clk 0:02:12]} 11. f3 {[%clk 0:02:41]}  O-O {[%clk 0:02:12]} 12. N2g3 {[%clk 0:02:41]}  Bg5 {[%clk 0:02:07]} 13. Qc2 {[%clk 0:02:40]}  Bf4 {[%clk 0:02:07]} 14. Ne2 {[%clk 0:02:33]}  Be3 {[%clk 0:02:06]} 15. b4 {[%clk 0:02:23]}  a5 {[%clk 0:02:05]} 16. b5 {[%clk 0:02:18]}  Qb8 {[%clk 0:01:44]} 17. N2g3 {[%clk 0:01:59]}  Qa7 {[%clk 0:01:43]} 18. Rf1 {[%clk 0:01:57]}  a4 {[%clk 0:01:35]} 19. a3 {[%clk 0:01:56]}  Bd4 {[%clk 0:01:30]} 20. Rb1 {[%clk 0:01:55]}  Nf6 {[%clk 0:01:20]} 21. Nxf6+ {[%clk 0:01:52]}  Rxf6 {[%clk 0:01:19]} 22. Be4 {[%clk 0:01:49]}  Qc5 {[%clk 0:01:15]} 23. Rb4 {[%clk 0:01:46]}  Qa7 {[%clk 0:01:08]} 24. Ke2 {[%clk 0:01:46]}  Bxe4 {[%clk 0:01:02]} 25. Nxe4 {[%clk 0:01:44]}  Rg6 {[%clk 0:01:02]} 26. g4 {[%clk 0:01:42]}  Bc5 {[%clk 0:00:58]} 27. Nxc5 {[%clk 0:01:41]}  Qxc5 {[%clk 0:00:49]} 28. Qd3 {[%clk 0:01:39]}  Rf6 {[%clk 0:00:45]} 29. Qe3 {[%clk 0:01:38]}  b6 {[%clk 0:00:39]} 30. Qxc5 {[%clk 0:01:36]}  bxc5 {[%clk 0:00:39]} 31. Rbb1 {[%clk 0:01:31]}  Rb8 {[%clk 0:00:39]} 32. Ke3 {[%clk 0:01:30]}  Rf4 {[%clk 0:00:40]} 33. Rbc1 {[%clk 0:01:28]}  Kf7 {[%clk 0:00:37]} 34. h4 {[%clk 0:01:27]}  h5 {[%clk 0:00:36]} 35. Rg1 {[%clk 0:01:24]}  g6 {[%clk 0:00:32]} 36. gxh5 {[%clk 0:01:21]}  gxh5 {[%clk 0:00:32]} 37. Rg5 {[%clk 0:01:21]}  Rxh4 {[%clk 0:00:26]} 38. Rcg1 {[%clk 0:01:20]}  Rxc4 {[%clk 0:00:19]} 39. Rg7+ {[%clk 0:01:16]}  Kf6 {[%clk 0:00:20]} 40. R7g6+ {[%clk 0:00:57]}  Kf7 {[%clk 0:00:20]} 41. Rh6 {[%clk 0:00:57]}  Rxb5 {[%clk 0:00:19]} 42. Rgg6 {[%clk 0:00:53]}  Rb3+ {[%clk 0:00:18]} 43. Kf2 {[%clk 0:00:51]}  Rf4 {[%clk 0:00:18]} 44. Re6 {[%clk 0:00:46]}  Rfxf3+ {[%clk 0:00:18]} 45. Kg2 {[%clk 0:00:46]}  Rxa3 {[%clk 0:00:16]} 46. Rh7+ {[%clk 0:00:46]}  Kg8 {[%clk 0:00:15]} 47. Rxc7 {[%clk 0:00:45]}  Rf7 {[%clk 0:00:10]} 48. Rc8+ {[%clk 0:00:35]}  Kg7 {[%clk 0:00:10]} 49. Rxd6 {[%clk 0:00:35]}  Rd3 {[%clk 0:00:10]} 50. Rdd8 {[%clk 0:00:34]}  a3 {[%clk 0:00:10]} 51. Rg8+ {[%clk 0:00:33]}  Kf6 {[%clk 0:00:10]} 52. Rc6+ {[%clk 0:00:31]}  Ke7 {[%clk 0:00:10]} 53. Re6+ {[%clk 0:00:31]}  Kd7 {[%clk 0:00:10]} 54. Ra8 {[%clk 0:00:30]}  Rg7+ {[%clk 0:00:08]} 55. Kf2 {[%clk 0:00:30]}  Rf7+ {[%clk 0:00:09]} 56. Ke2 {[%clk 0:00:29]}  Rxd5 {[%clk 0:00:10]} 57. Rea6 {[%clk 0:00:29]}  Rd6 {[%clk 0:00:08]} 58. R8a7+ {[%clk 0:00:29]}  Ke6 {[%clk 0:00:08]} 59. Rxd6+ {[%clk 0:00:29]}  Kxd6 {[%clk 0:00:09]} 60. Rxf7 {[%clk 0:00:29]}  Kd5 {[%clk 0:00:07]} 61. Ra7 {[%clk 0:00:29]}  e4 {[%clk 0:00:07]} 62. Rxa3 {[%clk 0:00:30]}  Kd4 {[%clk 0:00:08]} 63. Rh3 {[%clk 0:00:30]}  c4 {[%clk 0:00:09]} 64. Kd2 {[%clk 0:00:30]}  c3+ {[%clk 0:00:10]} 65. Rxc3 {[%clk 0:00:29]}  h4 {[%clk 0:00:11]} 66. Rh3 {[%clk 0:00:29]}  e3+ {[%clk 0:00:12]} 67. Rxe3 {[%clk 0:00:28]}  h3 {[%clk 0:00:12]} 68. Rxh3 {[%clk 0:00:29]} 1-0


[Site "https://www.chess.com"]

[Event "Titled Tuesday Blitz January 17 Early 2023"]
[White "Tarnowska, Aleksandra"]
[Black "Ovezdurdyyeva, Jemal"]
[WhiteFideId "1180967"]
[BlackFideId "14001888"]
[WhiteElo "1835"]
[BlackElo "2078"]
[Result "0-1"]
[Round "10"]
[TimeControl "180+2"]
[Date "2023.01.17"]
[WhiteClock "0:00:01"]
[BlackClock "0:00:13"]

1. e4 {[%clk 0:03:00]}  d6 {[%clk 0:03:00]} 2. d4 {[%clk 0:03:00]}  Nf6 {[%clk 0:03:00]} 3. Nd2 {[%clk 0:02:57]}  g6 {[%clk 0:02:59]} 4. Ngf3 {[%clk 0:02:52]}  Bg7 {[%clk 0:02:58]} 5. Bd3 {[%clk 0:02:41]}  Nbd7 {[%clk 0:02:57]} 6. O-O {[%clk 0:02:27]}  e5 {[%clk 0:02:56]} 7. c3 {[%clk 0:02:09]}  O-O {[%clk 0:02:55]} 8. Re1 {[%clk 0:02:09]}  c5 {[%clk 0:02:55]} 9. Nf1 {[%clk 0:02:01]}  Qb6 {[%clk 0:02:50]} 10. dxe5 {[%clk 0:01:46]}  dxe5 {[%clk 0:02:49]} 11. Ng3 {[%clk 0:01:36]}  Rd8 {[%clk 0:02:38]} 12. Bc4 {[%clk 0:01:01]}  a6 {[%clk 0:02:28]} 13. Ng5 {[%clk 0:00:59]}  Rf8 {[%clk 0:02:27]} 14. a4 {[%clk 0:00:42]}  Qc7 {[%clk 0:02:19]} 15. Qb3 {[%clk 0:00:35]}  Nb8 {[%clk 0:02:10]} 16. Be3 {[%clk 0:00:21]}  Nc6 {[%clk 0:02:02]} 17. Rad1 {[%clk 0:00:20]}  Na5 {[%clk 0:02:01]} 18. Qa2 {[%clk 0:00:17]}  Nxc4 {[%clk 0:02:00]} 19. Qxc4 {[%clk 0:00:18]}  h6 {[%clk 0:02:00]} 20. Nf3 {[%clk 0:00:17]}  b6 {[%clk 0:02:01]} 21. h3 {[%clk 0:00:16]}  Bb7 {[%clk 0:02:00]} 22. Bc1 {[%clk 0:00:14]}  Rfe8 {[%clk 0:01:53]} 23. b4 {[%clk 0:00:14]}  Rac8 {[%clk 0:01:50]} 24. b5 {[%clk 0:00:13]}  axb5 {[%clk 0:01:46]} 25. axb5 {[%clk 0:00:14]}  Ra8 {[%clk 0:01:35]} 26. Nh4 {[%clk 0:00:14]}  Ra5 {[%clk 0:01:04]} 27. Nxg6 {[%clk 0:00:13]}  Kh7 {[%clk 0:00:54]} 28. Nh4 {[%clk 0:00:14]}  Bc8 {[%clk 0:00:52]} 29. Nhf5 {[%clk 0:00:14]}  Bf8 {[%clk 0:00:48]} 30. Qe2 {[%clk 0:00:12]}  c4 {[%clk 0:00:45]} 31. Nh5 {[%clk 0:00:12]}  Re6 {[%clk 0:00:37]} 32. Nxf6+ {[%clk 0:00:06]}  Rxf6 {[%clk 0:00:37]} 33. Qh5 {[%clk 0:00:06]}  Rxb5 {[%clk 0:00:34]} 34. Bg5 {[%clk 0:00:06]}  Rg6 {[%clk 0:00:32]} 35. Bd8 {[%clk 0:00:03]}  Qc5 {[%clk 0:00:27]} 36. Rd5 {[%clk 0:00:03]}  Qc6 {[%clk 0:00:26]} 37. Red1 {[%clk 0:00:03]}  Rb2 {[%clk 0:00:23]} 38. R5d2 {[%clk 0:00:02]}  Rb3 {[%clk 0:00:22]} 39. Rc1 {[%clk 0:00:02]}  Qxe4 {[%clk 0:00:17]} 40. Ng3 {[%clk 0:00:01]}  Qf4 {[%clk 0:00:17]} 41. Rcd1 {[%clk 0:00:01]}  Rxc3 {[%clk 0:00:16]} 42. Qe2 {[%clk 0:00:01]}  Bc5 {[%clk 0:00:14]} 43. Bc7 {[%clk 0:00:01]}  Rcxg3 {[%clk 0:00:13]} 0-1


[Site "https://www.chess.com"]

[Event "Titled Tuesday Blitz January 17 Early 2023"]
[White "Warchol, Kamil"]
[Black "Begunov, Konstantin"]
[WhiteFideId "21858241"]
[BlackFideId "4118510"]
[WhiteElo "2173"]
[BlackElo "2325"]
[Result "1-0"]
[Round "10"]
[TimeControl "180+2"]
[Date "2023.01.17"]
[WhiteClock "0:00:37"]
[BlackClock "0:00:01"]

1. e4 {[%clk 0:02:54]}  c5 {[%clk 0:02:59]} 2. Nf3 {[%clk 0:02:51]}  d6 {[%clk 0:02:59]} 3. d4 {[%clk 0:02:50]}  cxd4 {[%clk 0:03:00]} 4. Nxd4 {[%clk 0:02:50]}  Nf6 {[%clk 0:03:01]} 5. Nc3 {[%clk 0:02:50]}  a6 {[%clk 0:03:01]} 6. Be3 {[%clk 0:02:48]}  Ng4 {[%clk 0:03:01]} 7. Bg5 {[%clk 0:02:32]}  Nc6 {[%clk 0:03:00]} 8. h3 {[%clk 0:02:29]}  Qb6 {[%clk 0:02:58]} 9. hxg4 {[%clk 0:02:22]}  Qxd4 {[%clk 0:02:58]} 10. Bd3 {[%clk 0:02:09]}  Qb4 {[%clk 0:02:04]} 11. Bd2 {[%clk 0:01:55]}  Ne5 {[%clk 0:01:17]} 12. Nd5 {[%clk 0:01:41]}  Qc5 {[%clk 0:01:10]} 13. b4 {[%clk 0:01:05]}  Qc6 {[%clk 0:01:02]} 14. b5 {[%clk 0:01:03]}  Qc5 {[%clk 0:00:14]} 15. Be3 {[%clk 0:00:53]}  Nxd3+ {[%clk 0:00:07]} 16. cxd3 {[%clk 0:00:49]}  Qa3 {[%clk 0:00:03]} 17. Nc7+ {[%clk 0:00:46]}  Kd8 {[%clk 0:00:03]} 18. Nxa8 {[%clk 0:00:47]}  Qc3+ {[%clk 0:00:02]} 19. Ke2 {[%clk 0:00:42]}  Bxg4+ {[%clk 0:00:02]} 20. f3 {[%clk 0:00:41]}  Bd7 {[%clk 0:00:02]} 21. Rc1 {[%clk 0:00:39]}  Qa3 {[%clk 0:00:01]} 22. Bb6+ {[%clk 0:00:37]} 1-0


[Site "https://www.chess.com"]

[Event "Titled Tuesday Blitz January 17 Early 2023"]
[White "Gatterer, Florian"]
[Black "MitzyCaballero"]
[WhiteFideId "811688"]
[WhiteElo "2170"]
[BlackElo "2235"]
[Result "1-0"]
[Round "10"]
[TimeControl "180+2"]
[Date "2023.01.17"]
[WhiteClock "0:00:06"]
[BlackClock "0:00:02"]

1. Nf3 {[%clk 0:03:00]}  e6 {[%clk 0:02:58]} 2. c4 {[%clk 0:02:54]}  b6 {[%clk 0:02:56]} 3. g3 {[%clk 0:02:53]}  Bb7 {[%clk 0:02:56]} 4. Bg2 {[%clk 0:02:54]}  f5 {[%clk 0:02:56]} 5. O-O {[%clk 0:02:53]}  Nf6 {[%clk 0:02:56]} 6. d4 {[%clk 0:02:54]}  Be7 {[%clk 0:02:50]} 7. Nc3 {[%clk 0:02:53]}  O-O {[%clk 0:02:49]} 8. d5 {[%clk 0:02:54]}  exd5 {[%clk 0:02:43]} 9. cxd5 {[%clk 0:02:47]}  Bb4 {[%clk 0:02:43]} 10. Qb3 {[%clk 0:02:42]}  Bxc3 {[%clk 0:02:31]} 11. d6+ {[%clk 0:02:29]}  Bd5 {[%clk 0:02:30]} 12. Qxc3 {[%clk 0:02:27]}  cxd6 {[%clk 0:01:29]} 13. Bf4 {[%clk 0:02:26]}  Qe7 {[%clk 0:01:06]} 14. Qa3 {[%clk 0:02:20]}  Qxe2 {[%clk 0:00:53]} 15. Bxd6 {[%clk 0:02:16]}  Re8 {[%clk 0:00:46]} 16. Rae1 {[%clk 0:02:12]}  Qb5 {[%clk 0:00:41]} 17. Rxe8+ {[%clk 0:01:58]}  Nxe8 {[%clk 0:00:40]} 18. Bf4 {[%clk 0:01:38]}  Nc6 {[%clk 0:00:38]} 19. Rd1 {[%clk 0:01:28]}  Nf6 {[%clk 0:00:37]} 20. h3 {[%clk 0:01:24]}  Re8 {[%clk 0:00:31]} 21. Be3 {[%clk 0:01:00]}  Ne4 {[%clk 0:00:20]} 22. Nd4 {[%clk 0:00:56]}  Nxd4 {[%clk 0:00:19]} 23. Rxd4 {[%clk 0:00:54]}  Bc6 {[%clk 0:00:15]} 24. b3 {[%clk 0:00:42]}  Qe2 {[%clk 0:00:15]} 25. Bf1 {[%clk 0:00:35]}  Qf3 {[%clk 0:00:15]} 26. Bg2 {[%clk 0:00:30]}  Qe2 {[%clk 0:00:15]} 27. Bf1 {[%clk 0:00:30]}  Qe1 {[%clk 0:00:13]} 28. Qc1 {[%clk 0:00:22]}  Qxc1 {[%clk 0:00:12]} 29. Bxc1 {[%clk 0:00:22]}  Kf7 {[%clk 0:00:09]} 30. Bc4+ {[%clk 0:00:21]}  Kf6 {[%clk 0:00:08]} 31. Bf4 {[%clk 0:00:20]}  Rd8 {[%clk 0:00:07]} 32. f3 {[%clk 0:00:18]}  g5 {[%clk 0:00:07]} 33. Bc7 {[%clk 0:00:16]}  Nc5 {[%clk 0:00:05]} 34. Bxd8+ {[%clk 0:00:15]}  Ke5 {[%clk 0:00:05]} 35. Rd2 {[%clk 0:00:13]}  d5 {[%clk 0:00:04]} 36. Be2 {[%clk 0:00:11]}  d4 {[%clk 0:00:04]} 37. Bxg5 {[%clk 0:00:11]}  h5 {[%clk 0:00:04]} 38. Bf4+ {[%clk 0:00:11]}  Ke6 {[%clk 0:00:03]} 39. Bc4+ {[%clk 0:00:11]}  Kf6 {[%clk 0:00:03]} 40. Rxd4 {[%clk 0:00:11]}  Bxf3 {[%clk 0:00:03]} 41. Rd6+ {[%clk 0:00:11]}  Ke7 {[%clk 0:00:04]} 42. Kf2 {[%clk 0:00:10]}  Be4 {[%clk 0:00:03]} 43. Rh6 {[%clk 0:00:10]}  Bb1 {[%clk 0:00:02]} 44. a3 {[%clk 0:00:09]}  Bc2 {[%clk 0:00:01]} 45. Ke3 {[%clk 0:00:08]}  Ne4 {[%clk 0:00:02]} 46. Bd3 {[%clk 0:00:06]} 1-0


[Site "https://www.chess.com"]

[Event "Titled Tuesday Blitz January 17 Early 2023"]
[White "Gressmann, Moritz"]
[Black "Zaichenko, Daria"]
[WhiteFideId "24695084"]
[BlackFideId "4197453"]
[WhiteElo "2129"]
[BlackElo "2104"]
[Result "1-0"]
[Round "10"]
[TimeControl "180+2"]
[Date "2023.01.17"]
[WhiteClock "0:00:18"]
[BlackClock "0:00:37"]

1. e4 {[%clk 0:03:00]}  c5 {[%clk 0:02:58]} 2. Nf3 {[%clk 0:03:00]}  Nc6 {[%clk 0:02:58]} 3. Bb5 {[%clk 0:03:00]}  Nd4 {[%clk 0:02:57]} 4. Nxd4 {[%clk 0:02:59]}  cxd4 {[%clk 0:02:57]} 5. O-O {[%clk 0:03:00]}  a6 {[%clk 0:02:58]} 6. Bc4 {[%clk 0:02:59]}  e6 {[%clk 0:02:56]} 7. d3 {[%clk 0:02:58]}  Be7 {[%clk 0:02:50]} 8. f4 {[%clk 0:02:56]}  d5 {[%clk 0:02:45]} 9. exd5 {[%clk 0:02:51]}  exd5 {[%clk 0:02:45]} 10. Bb3 {[%clk 0:02:51]}  Nf6 {[%clk 0:02:45]} 11. Qf3 {[%clk 0:02:47]}  O-O {[%clk 0:02:43]} 12. h3 {[%clk 0:02:45]}  h6 {[%clk 0:02:25]} 13. Qf2 {[%clk 0:02:33]}  b6 {[%clk 0:02:18]} 14. Nd2 {[%clk 0:02:30]}  Nh5 {[%clk 0:02:16]} 15. Nf3 {[%clk 0:02:29]}  f5 {[%clk 0:02:07]} 16. Kh2 {[%clk 0:02:27]}  Bb7 {[%clk 0:01:56]} 17. Nxd4 {[%clk 0:02:25]}  Bh4 {[%clk 0:01:53]} 18. Qf3 {[%clk 0:02:20]}  Bg3+ {[%clk 0:01:54]} 19. Kg1 {[%clk 0:02:15]}  Qh4 {[%clk 0:01:53]} 20. Bxd5+ {[%clk 0:02:10]}  Bxd5 {[%clk 0:01:53]} 21. Qxd5+ {[%clk 0:02:11]}  Kh8 {[%clk 0:01:47]} 22. Nxf5 {[%clk 0:02:11]}  Rxf5 {[%clk 0:01:37]} 23. Qxf5 {[%clk 0:02:10]}  Re8 {[%clk 0:01:30]} 24. Qg4 {[%clk 0:02:00]}  Qxg4 {[%clk 0:01:18]} 25. hxg4 {[%clk 0:02:00]}  Nf6 {[%clk 0:01:18]} 26. Bd2 {[%clk 0:01:47]}  Re2 {[%clk 0:01:12]} 27. Be1 {[%clk 0:01:43]}  Bxe1 {[%clk 0:01:03]} 28. Raxe1 {[%clk 0:01:43]}  Rxc2 {[%clk 0:01:03]} 29. Rf2 {[%clk 0:01:42]}  Rc5 {[%clk 0:01:02]} 30. g5 {[%clk 0:01:36]}  hxg5 {[%clk 0:01:02]} 31. fxg5 {[%clk 0:01:36]}  Rxg5 {[%clk 0:01:02]} 32. Re6 {[%clk 0:01:23]}  Rb5 {[%clk 0:00:57]} 33. Rc2 {[%clk 0:01:15]}  Kg8 {[%clk 0:00:53]} 34. Rec6 {[%clk 0:01:05]}  Rd5 {[%clk 0:00:53]} 35. Rxb6 {[%clk 0:01:02]}  Rxd3 {[%clk 0:00:52]} 36. Rxa6 {[%clk 0:00:59]}  Ng4 {[%clk 0:00:52]} 37. Rc1 {[%clk 0:00:47]}  Rd2 {[%clk 0:00:50]} 38. Ra4 {[%clk 0:00:41]}  Ne3 {[%clk 0:00:49]} 39. Re4 {[%clk 0:00:40]}  Rxg2+ {[%clk 0:00:44]} 40. Kh1 {[%clk 0:00:40]}  Re2 {[%clk 0:00:44]} 41. a4 {[%clk 0:00:30]}  g5 {[%clk 0:00:44]} 42. a5 {[%clk 0:00:25]}  g4 {[%clk 0:00:44]} 43. a6 {[%clk 0:00:23]}  g3 {[%clk 0:00:39]} 44. a7 {[%clk 0:00:20]}  g2+ {[%clk 0:00:39]} 45. Kg1 {[%clk 0:00:20]}  Kf7 {[%clk 0:00:38]} 46. Rxe3 {[%clk 0:00:18]}  Rxe3 {[%clk 0:00:37]} 47. a8=Q {[%clk 0:00:18]} 1-0


[Site "https://www.chess.com"]

[Event "Titled Tuesday Blitz January 17 Early 2023"]
[White "Cramling Bellon, Anna"]
[Black "Jiganchine, Roman"]
[WhiteFideId "32009232"]
[BlackFideId "2603667"]
[WhiteElo "2043"]
[BlackElo "2205"]
[Result "0-1"]
[Round "10"]
[TimeControl "180+2"]
[Date "2023.01.17"]
[WhiteClock "0:00:02"]
[BlackClock "0:00:53"]

1. d4 {[%clk 0:03:00]}  d5 {[%clk 0:02:58]} 2. c4 {[%clk 0:03:00]}  e6 {[%clk 0:02:52]} 3. Nc3 {[%clk 0:03:00]}  Nf6 {[%clk 0:02:52]} 4. cxd5 {[%clk 0:03:00]}  Nxd5 {[%clk 0:02:52]} 5. e4 {[%clk 0:02:59]}  Nxc3 {[%clk 0:02:51]} 6. bxc3 {[%clk 0:03:00]}  c5 {[%clk 0:02:51]} 7. Nf3 {[%clk 0:02:55]}  cxd4 {[%clk 0:02:51]} 8. cxd4 {[%clk 0:02:56]}  Bb4+ {[%clk 0:02:52]} 9. Bd2 {[%clk 0:02:57]}  Bxd2+ {[%clk 0:02:52]} 10. Qxd2 {[%clk 0:02:57]}  O-O {[%clk 0:02:52]} 11. Be2 {[%clk 0:02:46]}  b6 {[%clk 0:02:51]} 12. O-O {[%clk 0:02:42]}  Bb7 {[%clk 0:02:51]} 13. Qe3 {[%clk 0:02:41]}  Nd7 {[%clk 0:02:50]} 14. Rac1 {[%clk 0:02:28]}  Nf6 {[%clk 0:02:47]} 15. Nd2 {[%clk 0:02:28]}  Qd7 {[%clk 0:02:34]} 16. e5 {[%clk 0:01:49]}  Nd5 {[%clk 0:02:31]} 17. Qg3 {[%clk 0:01:44]}  Rac8 {[%clk 0:02:28]} 18. Ne4 {[%clk 0:01:37]}  Kh8 {[%clk 0:02:23]} 19. Nd6 {[%clk 0:01:30]}  Rxc1 {[%clk 0:02:10]} 20. Rxc1 {[%clk 0:01:31]}  Ba8 {[%clk 0:02:06]} 21. Bb5 {[%clk 0:01:29]}  Qe7 {[%clk 0:02:01]} 22. Qg4 {[%clk 0:00:26]}  h6 {[%clk 0:01:58]} 23. h4 {[%clk 0:00:25]}  g6 {[%clk 0:01:55]} 24. h5 {[%clk 0:00:22]}  gxh5 {[%clk 0:01:28]} 25. Qxh5 {[%clk 0:00:23]}  Qg5 {[%clk 0:01:28]} 26. Nxf7+ {[%clk 0:00:10]}  Rxf7 {[%clk 0:01:21]} 27. Rc8+ {[%clk 0:00:10]}  Kg7 {[%clk 0:01:20]} 28. Qxg5+ {[%clk 0:00:10]}  hxg5 {[%clk 0:01:20]} 29. Rxa8 {[%clk 0:00:10]}  Nc7 {[%clk 0:01:12]} 30. Rxa7 {[%clk 0:00:04]}  Nxb5 {[%clk 0:01:10]} 31. Ra6 {[%clk 0:00:04]}  Rb7 {[%clk 0:01:07]} 32. a4 {[%clk 0:00:03]}  Nxd4 {[%clk 0:01:05]} 33. Kf1 {[%clk 0:00:03]}  Nc6 {[%clk 0:01:03]} 34. Ke2 {[%clk 0:00:02]}  Nxe5 {[%clk 0:01:02]} 35. a5 {[%clk 0:00:02]}  Nc4 {[%clk 0:00:58]} 36. axb6 {[%clk 0:00:02]}  Rxb6 {[%clk 0:00:59]} 37. Ra7+ {[%clk 0:00:02]}  Kf6 {[%clk 0:00:58]} 38. Kd3 {[%clk 0:00:02]}  Ne5+ {[%clk 0:00:58]} 39. Kd4 {[%clk 0:00:02]}  Rb4+ {[%clk 0:00:57]} 40. Kc5 {[%clk 0:00:02]}  Rc4+ {[%clk 0:00:57]} 41. Kb5 {[%clk 0:00:02]}  Rc2 {[%clk 0:00:57]} 42. f4 {[%clk 0:00:01]}  gxf4 {[%clk 0:00:56]} 43. Ra8 {[%clk 0:00:01]}  Rxg2 {[%clk 0:00:55]} 44. Rf8+ {[%clk 0:00:02]}  Nf7 {[%clk 0:00:55]} 45. Kc6 {[%clk 0:00:02]}  Rd2 {[%clk 0:00:54]} 46. Kc5 {[%clk 0:00:02]}  f3 {[%clk 0:00:54]} 47. Kc4 {[%clk 0:00:01]}  f2 {[%clk 0:00:54]} 48. Kc3 {[%clk 0:00:02]}  Rd5 {[%clk 0:00:53]} 0-1


[Site "https://www.chess.com"]